Cogmind - Beta 9.2 @@@ ROGUE MODE // 2019.11.16 @ 15:18:12 Player: Fleshy Vegetable Bird Result: Destroyed by G-47 Trooper with Particle Gun Performance ------------- Evolutions (2) 1000 Regions Visited (7) 1400 Robots Destroyed (50) 250 Value Destroyed (1126) 1126 Prototype IDs (4) 80 Alien Tech Used (0) 0 Bonus (800) 800 TOTAL SCORE: 4656 Bonus ------- High Alert Combat Kills 25 Follower Combat Kills 128 Entered Garrisons 200 Used RIF Installer 500 Friendly Fire -53 Cogmind --------- Core Integrity 0/550 Matter 300/300 Energy 100/100 System Corruption 0% Temperature Cool (18) Movement Core (150) Ox2 Location -8/Materials Parts ------- > --- POWER (2) -------- (None) > --- PROPULSION (4) --- (None) > --- UTILITY (3) ------ Small Storage Unit Advanced Targeting Computer Improved Light Armor Plating > --- WEAPON (2) ------- (None) > --- INVENTORY (6) ---- Airjet Improved Flight Unit Improved Flight Unit Advanced Terrain Scanner EM Shotgun Faulty Cooled Particle Cannon Peak State ------------ > --- POWER ------------ Light Nuclear Core > --- PROPULSION ------- Wheel Wheel Gravmag System Improved VTOL Module > --- UTILITY ---------- High-capacity Storage Unit Core Analyzer Microactuators > --- WEAPON ----------- Powered Hammer Power Maul > --- INVENTORY -------- Light Nuclear Core Advanced Sensor Array Transmission Jammer Heavy EM Shotgun Heavy EM Shotgun Makeshift Laser EM Pulse Cannon Improved EM Pulse Cannon Assault Rifle Gauss Cannon Shock Bomb Launcher [Rating: 33] Favorites ----------- Power Light Nuclear Core Engine Light Ion Engine Power Core Light Nuclear Core Propulsion Flight Unit Leg Improved Titanium Leg Wheel Wheel Hover Unit Gravmag System Flight Unit Flight Unit Utility High-capacity Storage Unit Device Microactuators Storage High-capacity Storage Unit Processor Core Analyzer Protection Improved Light Armor Plating Weapon Heavy EM Shotgun Energy Gun Heavy EM Shotgun Energy Cannon Improved EM Pulse Cannon Ballistic Gun Assault Rifle Launcher Grenade Launcher Special Weapon Mining Laser Impact Weapon Powered Hammer Build | -11 -10 -10 -10 -9 -8 -8 -8 ------- Run | Scr Mat Min Exi Min Mat Gar Mat Slots Evolved 4 | . . . . . 4 . . Power 1 | . . . . . 1 . . Propulsion 2 | . . . . . 2 . . Utility 1 | . . . . . 1 . . Weapon . | . . . . . . . . Parts Attached 56 | 2 1 1 2 5 17 11 17 Power 5 | . . . . . 3 1 1 Engine 2 | . . . . . 1 . 1 Core 3 | . . . . . 2 1 . Reactor . | . . . . . . . . Propulsion 22 | . . . 2 3 6 5 6 Treads . | . . . . . . . . Leg 3 | . . . . 1 . . 2 Wheel 7 | . . . . 2 2 . 3 Hover 2 | . . . . . 1 1 . Flight 10 | . . . 2 . 3 4 1 Utility 12 | 1 . . . 1 3 1 6 Device 6 | 1 . . . . 1 1 3 Storage 2 | . . . . 1 . . 1 Processor 3 | . . . . . 2 . 1 Hackware . | . . . . . . . . Protection 1 | . . . . . . . 1 Artifact . | . . . . . . . . Weapon 17 | 1 1 1 . 1 5 4 4 Energy Gun 9 | 1 . . . . 4 1 3 Energy Cannon 1 | . . . . . . . 1 Ballistic Gun 1 | . . . . . . 1 . Ballistic Cannon . | . . . . . . . . Launcher 3 | . . 1 . . . 2 . Special Weapon 1 | . 1 . . . . . . Impact Weapon 2 | . . . . 1 1 . . Slashing Weapon . | . . . . . . . . Piercing Weapon . | . . . . . . . . Special Melee Weapon . | . . . . . . . . Unidentified Prototypes 4 | . . . . . 3 . 1 Parts Lost 28 | . 3 . . . 6 8 11 Power 5 | . . . . . 1 2 2 Propulsion 13 | . . . . . 4 4 5 Utility 2 | . 1 . . . . . 1 Weapon 8 | . 2 . . . 1 2 3 Highest Loss Streak 7 | . 3 . . . 5 5 7 Average Slot Usage (%) 59 | . 31 14 20 66 66 79 78 Core 7 | . . . . . 4 17 7 Leg 1 | . . . . 7 . . 2 Wheel 4 | . . . . 10 10 . 8 Hover 1 | . . . . . 4 4 . Flight 8 | . . . 6 9 1 12 17 Device 5 | . 12 . . . 6 9 8 Storage 6 | . . . . 13 9 8 6 Processor 6 | . . . . . 10 9 9 Energy Gun 5 | . 14 . . . . 11 7 Launcher 5 | . . 14 14 14 1 5 . Impact Weapon 3 | . . . . 10 14 . . Naked Turns 5 | . 5 . . . . . . Heaviest Build 54 | 3 4 3 3 38 52 54 27 Greatest Support 30 | 3 3 3 4 20 20 20 30 Greatest Overweight (x) 14 | . 1 . . 1 14 5 3 Average Overweight (x) . | . . . . . 2 2 . Largest Inventory Capacity 12 | 4 4 4 4 12 12 12 6 Average Capacity 8 | 4 4 4 4 11 12 11 5 Most Carried 12 | 2 3 4 4 12 12 12 6 Average Carried 6 | . 2 3 3 10 9 10 3 Final Capacity 12 | 4 4 4 4 12 12 4 6 Final Carried 12 | 1 2 4 3 12 11 4 6 Class Distribution -------------------- 55% | Mutant 20% | Scavenger-Mutant 17% | Commander-Mutant 7% | Scavenger-Sprinter Dominant Class ---------------- Mutant | -10/Materials Mutant | -10/Mines Commander-Mutant | -10/Exiles Commander-Mutant | -9/Mines Mutant | -8/Materials Mutant | -8/Garrison Scavenger-Mutant | -8/Materials Resources | -11 -10 -10 -10 -9 -8 -8 -8 ----------- Run | Scr Mat Min Exi Min Mat Gar Mat Matter Collected 833 | 133 . 44 . 165 134 136 221 Remotely . | . . . . . . . . Salvage Created 1952 | 102 . 21 23 139 609 485 573 Parts 88 | 4 . 8 . 6 12 28 30 Haulers Intercepted 2 | . . . . . 1 . 1 Recyclers Shooed 1 | . . . . . 1 . . Parts Field Recycled . | . . . . . . . . Retrieved Matter . | . . . . . . . . Parts Self-Destructed . | . . . . . . . . Prevented . | . . . . . . . . Kills | -11 -10 -10 -10 -9 -8 -8 -8 ------- Run | Scr Mat Min Exi Min Mat Gar Mat Combat Hostiles Destroyed 32 | . . 6 . . 6 14 6 Melee 5 | . . . . . 5 . . Guns 6 | . . . . . . 3 3 Cannons 2 | . . . . . . . 2 AOE 17 | . . 6 . . 1 9 1 Classes Destroyed 11 | 2 . 1 . 2 3 . 3 Worker 3 | . . . . 1 2 . . Builder 2 | . . . . 1 . . 1 Tunneler 2 | 1 . . . 1 . . . Hauler 2 | . . . . . 1 . 1 Recycler 6 | 1 . . . 1 3 . 1 Operator 1 | . . . . . . . 1 Watcher 2 | . . . . . . . 2 Swarmer 14 | . . 6 . . . 8 . Grunt 15 | . . . . . 5 6 4 Sentry 2 | . . . . . . . 2 Hunter 1 | . . . . . 1 . . Best Kill Streak 4 | 2 . 3 . 2 3 4 4 Combat Bots Only 4 | . . 3 . . 2 4 2 Max Kills in Single Turn 3 | 1 . 2 . 1 1 2 3 Gunslinging . | . . . . . . . . Exploded 2 | . . 2 . . 1 2 1 Melee 1 | . . . . . 1 . . Uniques/NPCs Destroyed . | . . . . . . . . Combat | -11 -10 -10 -10 -9 -8 -8 -8 -------- Run | Scr Mat Min Exi Min Mat Gar Mat Damage Taken 2462 | . 150 56 . . 691 553 1012 Core 619 | . 40 25 . . 231 107 216 Absorbed by Shields 31 | . . . . . . 31 . Core Remaining (%) 87 | 100 . . . 74 . . . Volleys Fired 63 | 4 3 4 1 . 3 22 26 Largest 2 | 1 1 1 1 . 1 2 2 Hottest 119 | 40 100 30 30 . 30 100 119 Shots Fired 101 | 4 3 4 1 . 3 41 45 Gun 66 | 4 . . . . . 24 38 Cannon 7 | . . . . . . . 7 Launcher 25 | . . 4 1 . 3 17 . Special 3 | . 3 . . . . . . Kinetic 9 | . . . . . . . 9 Thermal 6 | . 3 . . . . . 3 Explosive 8 | . . 4 1 . 3 . . Electromagnetic 78 | 4 . . . . . 41 33 Robot Hit Streak 13 | 4 . 6 . . 1 10 13 Robot Miss Streak 8 | . . 1 . . 2 8 4 Penetration Max . | . . . . . . . . Secondary Targets . | . . . . . . . . Shots Hit Robots 101 | 4 . 2 . 4 35 21 35 Core Hits 75 | 2 . 7 3 3 12 24 24 Critical Hits 3 | . . . . . . 2 1 Critical Kills . | . . . . . . . . Critical Parts Destroyed 2 | . . . . . . 1 1 Melee Attacks 46 | . . . . 4 42 . . Impact 46 | . . . . 4 42 . . Slashing . | . . . . . . . . Piercing . | . . . . . . . . Sneak Attacks 10 | . . . . 4 6 . . Combat Hostiles . | . . . . . . . . Follow-up Attacks 5 | . . . . . 5 . . Damage Inflicted 4429 | 83 . 321 87 365 1782 938 853 Guns 886 | 49 . . . . . 307 530 Cannons 115 | . . . . . . . 115 Explosions 1430 | 34 . 321 87 . 152 631 205 Melee 1995 | . . . . 365 1630 . . Ramming 3 | . . . . . . . 3 Kinetic 60 | . . . . . . . 60 Thermal 408 | 34 . . . . . 169 205 Explosive 560 | . . 321 87 . 152 . . Electromagnetic 1403 | 49 . . . . . 769 585 Impact 1995 | . . . . 365 1630 . . Slashing . | . . . . . . . . Piercing . | . . . . . . . . Highest Corruption . | . . . . . . . . Average Corruption . | . . . . . . . . Corruption Purged . | . . . . . . . . Overload Shots . | . . . . . . . . Overflow Damage 654 | . . 3 . 83 502 38 28 Projectiles . | . . . . . . . . Explosions 70 | . . 3 . . 1 38 28 Melee 584 | . . . . 83 501 . . Knockbacks 6 | . . . . . 6 . . Impact 6 | . . . . . 6 . . Kinetic . | . . . . . . . . Secondary . | . . . . . . . . Self-Inflicted Damage 81 | . . . . . . 17 64 Shots 3 | . . . . . . 1 2 Rammed 3 | . 1 . . . . . 2 Targets Rammed 3 | . 1 . . . . . 2 Kicked . | . . . . . . . . Crushed . | . . . . . . . . Highest Temperature 310 | 15 . . . . . 219 310 Average Temperature 83 | 10 . . . . . 76 92 Received Heat Transfer 900 | . 18 9 . . 315 117 441 Effects 4 | . . . . . . . 4 Interference 4 | . . . . . . . 4 Siege Activations . | . . . . . . . . Robots Corrupted 2 | . . . . . . 2 . Combat Hostiles 2 | . . . . . . 2 . Parts Fried 13 | . . . . 1 2 5 5 Impact Corruptions 20 | . . . . 3 17 . . Robots Melted . | . . . . . . . . Combat Hostiles . | . . . . . . . . Parts Melted . | . . . . . . . . Heat Transferred 500 | 50 . . . . . 250 200 Parts Sabotaged . | . . . . . . . . Parts Stolen . | . . . . . . . . Parts Stripped . | . . . . . . . . Power Chain Reactions 8 | 1 . . . . . 5 2 Missiles Intercepted . | . . . . . . . . Alert | -11 -10 -10 -10 -9 -8 -8 -8 ------- Run | Scr Mat Min Exi Min Mat Gar Mat Peak Influence 426 | 10 21 206 . 24 222 426 415 Average Influence 205 | 5 8 159 . 12 139 275 305 Maximum Alert Level 2 | . . 1 . . 1 2 2 Low Security (%) 52 | 100 100 60 . 100 79 37 19 Level 1 30 | . . 39 . . 20 27 54 Level 2 16 | . . . . . . 35 25 Level 3 . | . . . . . . . . Level 4 . | . . . . . . . . Level 5 . | . . . . . . . . High Security . | . . . . . . . . Max Security . | . . . . . . . . Squads Dispatched 5 | . 1 . . 1 . . 3 Investigation 2 | . . . . 1 . . 1 Extermination . | . . . . . . . . Reinforcement 3 | . 1 . . . . . 2 Assault . | . . . . . . . . Garrison . | . . . . . . . . Intercept . | . . . . . . . . Construction Impeded 1 | . . . . . . . 1 Haulers Reinforced . | . . . . . . . . Stealth | -11 -10 -10 -10 -9 -8 -8 -8 --------- Run | Scr Mat Min Exi Min Mat Gar Mat Distress Signals 4 | . 1 . . . . . 3 Communications Jammed 11 | . . . . . . 11 . Distress Signals 11 | . . . . . . 11 . Times Spotted 80 | . 9 8 . . 16 18 29 Peak Tracking Total 13 | . 8 3 . . 5 6 13 Tactical Retreats 7 | . . 1 . . 3 2 1 Traps | -11 -10 -10 -10 -9 -8 -8 -8 ------- Run | Scr Mat Min Exi Min Mat Gar Mat Traps Triggered 3 | . . . . . 1 1 1 Indirectly . | . . . . . . . . Trap Hack Attempts . | . . . . . . . . Triggered . | . . . . . . . . Disarmed . | . . . . . . . . Reprogrammed . | . . . . . . . . Reused . | . . . . . . . . Traps Extracted . | . . . . . . . . Installed . | . . . . . . . . Triggered . | . . . . . . . . Machines | -11 -10 -10 -10 -9 -8 -8 -8 ---------- Run | Scr Mat Min Exi Min Mat Gar Mat Machines Disabled 1 | . . 1 . . . . . Max in Single Turn 1 | . . 1 . . . . . Machines Sabotaged . | . . . . . . . . Garrisons Compromised . | . . . . . . . . Overloaded Fab Kills . | . . . . . . . . Fab Network Shutdowns . | . . . . . . . . Hacking | -11 -10 -10 -10 -9 -8 -8 -8 --------- Run | Scr Mat Min Exi Min Mat Gar Mat Machines Accessed 11 | . 2 . 1 1 3 . 4 Terminals 7 | . 2 . . . 2 . 3 Fabricators . | . . . . . . . . Repair Stations . | . . . . . . . . Recycling Units . | . . . . . . . . Scanalyzers 1 | . . . . . . . 1 Garrison Access 1 | . . . . . 1 . . Total Hacks 27 | . 5 . 3 1 9 . 9 Successful 18 | . 4 . 3 1 4 . 6 Failed 9 | . 1 . . . 5 . 3 Catastrophic . | . . . . . . . . Database Lockouts . | . . . . . . . . Manual 18 | . 5 . . . 5 . 8 Terminals 17 | . 5 . . . 5 . 7 Fabricators . | . . . . . . . . Repair Stations . | . . . . . . . . Recycling Units . | . . . . . . . . Scanalyzers 2 | . . . . . . . 2 Garrison Access 4 | . . . . . 4 . . Terminal Hacks 6 | . 1 . 3 1 . . 1 Record 3 | . . . 3 . . . . Open Door 1 | . . . . 1 . . . Terminal Index 1 | . 1 . . . . . . Recall Investigation 1 | . . . . . . . 1 Fabricator Hacks . | . . . . . . . . Repair Station Hacks . | . . . . . . . . Recycling Unit Hacks . | . . . . . . . . Scanalyzer 2 | . . . . . . . 2 Insert Component 1 | . . . . . . . 1 Analyze 1 | . . . . . . . 1 Garrison Access Hacks 1 | . . . . . 1 . . Unlock Access 1 | . . . . . 1 . . Unauthorized Hacks 22 | . 7 . . . 7 . 8 Terminals 9 | . 3 . . . 3 . 3 Track 3 | . . . . . 2 . 1 Assimilate 1 | . . . . . . . 1 Botnet 4 | . 2 . . . 1 . 1 Operators 1 | . 1 . . . . . . Fabricators . | . . . . . . . . Repair Stations . | . . . . . . . . Recycling Units . | . . . . . . . . Scanalyzers . | . . . . . . . . Garrison Access . | . . . . . . . . Data Cores Recovered . | . . . . . . . . Used . | . . . . . . . . Hacking Detections 8 | . 2 . . . 2 . 4 Full Trace Events . | . . . . . . . . Feedback Events . | . . . . . . . . Feedback Blocked . | . . . . . . . . Robot Schematics Acquired . | . . . . . . . . Robots Built . | . . . . . . . . Matter . | . . . . . . . . Time . | . . . . . . . . Total Robot Build Rating . | . . . . . . . . Part Schematics Acquired 1 | . . . . . . . 1 Parts Built . | . . . . . . . . Matter . | . . . . . . . . Time . | . . . . . . . . Total Part Build Rating . | . . . . . . . . Parts Repaired . | . . . . . . . . Time . | . . . . . . . . Parts Recycled . | . . . . . . . . Recycled Matter . | . . . . . . . . Retrieved Matter . | . . . . . . . . Retrieved Components . | . . . . . . . . Parts Scanalyzed 1 | . . . . . . . 1 Part Schematics Acquired 1 | . . . . . . . 1 Parts Damaged . | . . . . . . . . Bothacking | -11 -10 -10 -10 -9 -8 -8 -8 ------------ Run | Scr Mat Min Exi Min Mat Gar Mat Used RIF Installer 1 | . . . . . . 1 . Robots Hacked . | . . . . . . . . Non-combat . | . . . . . . . . Combat . | . . . . . . . . Robot Hacks Applied . | . . . . . . . . Relay Couplers Released . | . . . . . . . . Robots Rewired 2 | . . . 2 . . . . Allies Hacked . | . . . . . . . . Hacks Repelled . | . . . . . . . . Allies | -11 -10 -10 -10 -9 -8 -8 -8 -------- Run | Scr Mat Min Exi Min Mat Gar Mat Total Allies 7 | . . 4 2 . . . 1 Largest Group 5 | . . 3 5 4 4 . 1 Highest-Rated Group 84 | . . 55 84 53 53 . 10 Highest-Rated Ally 31 | . . 31 31 21 21 . 10 Total Orders . | . . . . . . . . Ally Attacks 31 | . . 12 . . 19 . . Total Damage 572 | . . 154 . . 418 . . Kills 6 | . . 2 . . 4 . . Allies Corrupted . | . . . . . . . . Allies Melted . | . . . . . . . . Intel | -11 -10 -10 -10 -9 -8 -8 -8 ------- Run | Scr Mat Min Exi Min Mat Gar Mat Robot Analysis Total . | . . . . . . . . Derelict Logs Recovered 1 | . . 1 . . . . . Drone Launches . | . . . . . . . . Drone Recoveries . | . . . . . . . . Exploration | -11 -10 -10 -10 -9 -8 -8 -8 ------------- Run | Scr Mat Min Exi Min Mat Gar Mat Turns Passed 2321 | 26 92 258 269 157 425 568 526 Spaces Moved 1840 | 27 128 351 428 101 220 250 335 Core 892 | 27 128 351 384 . 2 . . Treads . | . . . . . . . . Legs 92 | . . . . 43 . . 49 Wheels 414 | . . . . 50 186 19 159 Hover 118 | . . . . . 32 86 . Flight 324 | . . . 44 8 . 145 127 Fastest Speed 32 | 50 50 50 40 40 90 32 32 Average Speed 86 | 50 56 50 48 115 131 187 75 Slowest Speed 750 | 50 100 50 50 160 750 409 245 Overloaded Moves . | . . . . . . . . Propulsion Burnouts . | . . . . . . . . Robots Hopped 1 | . . . . . . . 1 Cave-ins Triggered . | . . . . . . . . Exploration Rate (%) 39 | 4 37 61 89 19 25 44 35 Regions Visited 7 Branch Regions 3 Pre-discovered Areas 1 | . . . 1 . . . . Known Exits Taken 1 | . . . . . 1 . . Unknown Exits Taken 5 | 1 1 1 1 1 . . . Scrap Searched 1 | . . . . 1 . . . Spaces Dug 3 | . 3 . . . . . . Terrain Destroyed 86 | 6 3 30 3 . 20 12 12 Melee . | . . . . . . . . Projectile 3 | . 3 . . . . . . AOE 83 | 6 . 30 3 . 20 12 12 Actions | -11 -10 -10 -10 -9 -8 -8 -8 --------- Run | Scr Mat Min Exi Min Mat Gar Mat Total 2409 | 35 138 428 485 134 317 307 565 Wait 307 | . 4 70 40 12 20 6 155 Move 1830 | 26 127 350 427 100 219 248 333 Hop 1 | . . . . . . . 1 Pick Up 59 | 3 2 3 1 12 15 4 19 Fast Attach . | . . . . . . . . Attach 39 | 2 1 1 2 2 13 7 11 Detach 5 | . . . . . 2 . 3 Swap 17 | . . . . 3 4 4 6 Drop 20 | . . . . 1 5 5 9 Fire 63 | 4 3 4 1 . 3 22 26 Melee 40 | . . . . 4 36 . . Ram 3 | . 1 . . . . . 2 Kick . | . . . . . . . . Crush . | . . . . . . . . Escape Stasis 11 | . . . . . . 11 . Rewire 14 | . . . 14 . . . . Trap . | . . . . . . . . Miscellaneous . | . . . . . . . . Route ------- -11/Scrapyard -10/Materials -10/Mines (discovered 3 exits: [*Mat x2] / *Exi) -10/Exiles (discovered 2 exits: *Min x2) -9/Mines -8/Materials -8/Garrison (discovered 2 exits: *Mat x2) -8/Materials History --------- Turn | Location | Event 7 | -11/Scrapyard | Discovered new exit (range 16) 27 | -11/Scrapyard | Entered Materials 113 | -10/Materials | Discovered new exit (range 13) 119 | -10/Materials | Entered Mines 145 | -10/Mines | Lost 3 parts (1u2w) 145 | -10/Mines | Learned Materials emergency access door positions 145 | -10/Mines | Discovered new exit (range 10) 220 | -10/Mines | Discovered new exit (range 8) 227 | -10/Mines | Assisted by bots powering up and referring to "LRC-V3" 311 | -10/Mines | Build established: Mutant 351 | -10/Mines | Received a Mining Laser from a helpful Derelict 360 | -10/Mines | Deemed a non-threat by the Exiles lab entrance 364 | -10/Mines | Discovered new exit (range 5) 377 | -10/Mines | Entered Exiles 377 | -10/Exiles | Found Exiles lab destroyed 377 | -10/Exiles | Accompanied by 3 allies 385 | -10/Exiles | Discovered new exit (range 15) 576 | -10/Exiles | Learned location of Zion (-7) 601 | -10/Exiles | Discovered new exit (range 12) 646 | -10/Exiles | Entered Mines 646 | -9/Mines | Accompanied by 4 allies 650 | -9/Mines | Met a Derelict shopkeep closing up shop 727 | -9/Mines | Build established: Commander-Mutant 762 | -9/Mines | Discovered new exit (range 6) 803 | -9/Mines | Entered Materials 803 | -8/Materials | Accompanied by 4 allies 803 | -8/Materials | Evolved 4 slots: Power x1, Propulsion x2, Utility x1 998 | -8/Materials | Lost 5 parts (1p4n) 1194 | -8/Materials | Identified exit to Garrison 1228 | -8/Materials | Entered Garrison 1249 | -8/Garrison | Triggered checkpoint 1255 | -8/Garrison | Triggered checkpoint 1548 | -8/Garrison | Build established: Mutant 1562 | -8/Garrison | Core integrity fell below 50% 1637 | -8/Garrison | Discovered new exit (range 10) 1770 | -8/Garrison | Triggered checkpoint 1788 | -8/Garrison | Discovered new exit (range 15) 1794 | -8/Garrison | Installed Relay Interface Framework 1796 | -8/Garrison | Entered Materials 1804 | -8/Materials | Lost 5 parts (2p1n2w) 2307 | -8/Materials | Core integrity fell below 20% 2322 | -8/Materials | Destroyed by G-47 Trooper with Particle Gun Last Messages --------------- 02294_ Connecting with Terminal... >>Recall(Investigation) Establishing remote squad link... Recalled investigation squad JO4W2ZJP94. 02300_ Acquired Prototype Energy Cannon. 02303_ Lgt. Deuterium Engine destroyed. 02308_ Wheel destroyed. 02308_ O-24 Administrator: "IFF HANDSHAKE FAILED. SECURING TERMINAL." 02311_ O-24 Administrator uses terminal to summon reinforcements. 02311_ ALERT: Hostiles spotted, dispatching reinforcements to Terminal M006. 02311_ O-24 Administrator locks terminal. 02311_ Dropped Pulse Rifle. 02311_ Acquired Prototype Flight Unit. 02312_ Identified Imp. Flight Unit. 02314_ Dropped Imp. VTOL Module. 02314_ Dropped Gauss Cannon. 02316_ Acquired Imp. Flight Unit. 02316_ Wheel destroyed. 02320_ Slammed into G-47 Trooper. Map ----- +----------------------------------------------------+ | ??????????????????????????????????? | | ??????????????????????????????????? | | ??????????????????????????????????? | | ??????????????????????????????????? | | ??????????????????????????????????? | | ??????????????????????????????????? | | ??????????????????????????????????? | | ??????????????????????????????????? | | ??????????????????????????????????? | | ??????????????????????????????????? | | ??????????????????????????????????? | | ?????????????????????#????????????? | | ?????????????????????# ??????????? | | ?????????????????????# ?????????? | | ?????????????????????# ?????????? | | ?????????????????????# ?????????? | | ?????????????????????# ?????????? | | ?????????????????????# #????????? | | ?????????????????????# #????????? | | ?????????????????????# #???##???? | | ?????????????????????# #### ##### | | ?????????????????????# ## = ! # | | ?????????????????????#^^ ## # | | ????????????????????## ## """ # | | ?????????????####+### g # """ "# | | ?????????????# a @# """ "# | | ?????????????# g bgg% "# | | ?????????????# g # T# | | ?????????????# #### #[] ! "# | | ?????????????# ???###Y###= "# | | ?????????????? ###### #?#== "# | | ?????????????? ##]] #?#== # | | #######??????# ##]] #?######### | | #??????# ##** ####??????? | | " [ ""#??????# ##** #??????? | | " Y"#??????# ##] #??????? | | " ""#??????# ##]] #??????? | | " #??????# ###### #??????? | | #??????# #?####/##+###????? | | #??????# #?# #????? | | #??????# ### T #????? | | #+############ # #????? | | # """ """ #????? | | ! + """ """ #????? | | [%= # """ """ #????? | | ###/########## !# #????? | | ? [%!????????## ## %#????? | | = #????????# ######### ##????? | | #????????# #????????##?????? | | #????????# #???????????????? | +----------------------------------------------------+ Best States ------------- Heat Dissipation 31 Energy Generation 23 Energy Capacity 220 Matter Stores 300 Matter Capacity 300 Sight Range 16 Robot Scan Range 16 Terrain Scan Range 16 Terrain Scan Density 85 Jamming Range 8 Armor Coverage 150 Melee Speed Boost 20 Evasion (%) 63 Targeting Accuracy 8 Core Analysis 6 Item Schematics ----------------- Adv. Sensor Array | -8/Materials | Scanalyzed Robot Schematics ------------------ None Fabricated ------------ Nothing Alien Tech Used ----------------- None Achievements -------------- Total Silence Challenges ------------ None Game ------ Seed PowerDeuteriumSegregator Manual? 0 Play Time 00:28:36 Cumulative 174.1 hours Start 2019.11.16 @ 14:52:05 End 2019.11.16 @ 15:18:12 Sessions 1 Manual Loads 0 Difficulty Rogue Special Mode None Game No. 249 Rogue 249 Adventurer 0 Explorer 0 Win Type - Total 1 Types 1/0/0/0/0/0/0 Lore% 51 Gallery% 69 Achievement% 44 Wizard Run 0 Options --------- ASCII 0 Keyboard 0 Movement Numpad Keybinds 0 Fullscreen 1 Font 16/Terminus Map View 75x55 Tactical HUD 1 Map Filters NONE Filters NONE Steam 1 RUN: cc2987e4-4c41-4ad7-8a38-fd3b16cd515a